bitfinex/quotes_BTCUSD_20250212
["timestamp","ask_amount","ask_price","bid_price","bid_amount"]
[1739381670955,0.32173066,97603.0,97602.0,0.00022386]
[1739381671330,0.31673066,97603.0,97602.0,0.00022386]
[1739381671677,0.31973066,97603.0,97602.0,0.00022386]
[1739381672162,0.31673066,97603.0,97602.0,0.00022386]
[1739381672567,0.31873066,97603.0,97602.0,0.00022386]
[1739381672774,0.003,97603.0,97602.0,0.12572751]
[1739381672985,0.005,97603.0,97602.0,0.12675197]
[1739381673238,0.003,97603.0,97602.0,0.12572751]
[1739381673650,0.003,97603.0,97602.0,0.00022386]
[1739381673803,0.004,97603.0,97602.0,0.00022386]
[1739381674006,0.003,97603.0,97602.0,0.01878866]
[1739381674212,0.004,97603.0,97602.0,0.01878866]
[1739381674390,0.001,97603.0,97602.0,0.01878866]
[1739381674834,0.002,97603.0,97602.0,0.01878866]
[1739381675375,0.001,97603.0,97602.0,0.01878866]
[1739381675580,0.304683,97603.0,97602.0,0.01878866]
[1739381675781,0.3706415,97603.0,97602.0,0.01878866]
[1739381675983,0.381752,97603.0,97602.0,0.01878866]
[1739381676137,0.3157935,97603.0,97602.0,0.01878866]
[1739381676343,0.3137485,97603.0,97602.0,0.01878866]
[1739381676927,0.3147485,97603.0,97602.0,0.01878866]
[1739381677128,0.3147485,97603.0,97602.0,0.00022386]
[1739381677447,0.38520435,97603.0,97602.0,0.00022386]
[1739381677697,0.3137485,97603.0,97602.0,0.00022386]
[1739381677832,0.3147485,97603.0,97602.0,0.00022386]
[1739381679012,0.3127485,97603.0,97602.0,0.00022386]
[1739381679224,0.3158735,97603.0,97602.0,0.00022386]
[1739381679353,0.3148735,97603.0,97602.0,0.00022386]
[1739381679556,0.38734185,97603.0,97602.0,0.00022386]
[1739381679756,0.37534185,97603.0,97602.0,0.00022386]
[1739381679981,0.303715,97583.0,97582.0,0.00013257]
[1739381681009,0.153718,97581.0,97568.0,0.02223143]
[1739381681211,0.00043948,97583.0,97569.0,0.12108907]
[1739381681586,0.20239412,97579.0,97569.0,0.01858542]
[1739381682213,0.153734,97571.0,97569.0,0.01858542]
[1739381682430,0.20239412,97579.0,97567.0,4.021e-05]
[1739381683011,0.153729,97574.0,97567.0,4.021e-05]
[1739381683212,0.001,97579.0,97570.0,0.023]
[1739381683411,0.001,97579.0,97577.0,0.153724]
[1739381684039,0.20239412,97587.0,97574.0,0.20497]
[1739381684265,0.20239412,97587.0,97576.0,0.153726]
[1739381684452,0.001,97579.0,97576.0,0.153726]
[1739381684664,0.001,97579.0,97575.0,0.153727]
[1739381684982,0.20239412,97587.0,97575.0,0.153727]
[1739381685264,0.153711,97586.0,97574.0,0.25636457]
[1739381685466,0.204948,97586.0,97574.0,0.10263557]
[1739381685692,0.20239412,97587.0,97574.0,0.10263557]
[1739381685884,0.153723,97578.0,97574.0,0.10263557]
[1739381686126,0.001,97579.0,97574.0,0.10263557]
[1739381686312,0.001,97579.0,97574.0,0.00013192]
[1739381686939,0.153727,97575.0,97574.0,0.00013192]
[1739381688905,0.26808328,97575.0,97574.0,0.00013192]
[1739381689969,0.26808328,97575.0,97565.0,0.0145677]
[1739381689970,0.11835628,97575.0,97565.0,0.01365144]
[1739381690121,0.153742,97566.0,97565.0,0.01365144]
[1739381691979,0.155742,97566.0,97565.0,0.01365144]
[1739381692623,0.153742,97566.0,97565.0,0.01365144]
[1739381692824,0.005,97566.0,97565.0,0.01365144]
[1739381693166,0.158742,97566.0,97565.0,0.01365144]
[1739381693361,0.005,97566.0,97565.0,0.01365144]
[1739381693565,0.003,97566.0,97565.0,0.01365144]
[1739381694008,0.006,97566.0,97565.0,0.01365144]
[1739381694145,0.003,97566.0,97565.0,0.01365144]
[1739381694350,0.005,97566.0,97565.0,0.01365144]
[1739381694799,0.156742,97566.0,97565.0,0.01333417]
[1739381695251,0.154742,97566.0,97565.0,0.01333417]
[1739381695591,0.153742,97566.0,97565.0,0.01333417]
[1739381695789,0.143742,97566.0,97565.0,0.01333417]
[1739381695999,0.57631685,97566.0,97565.0,0.01333417]
[1739381696207,0.56631685,97566.0,97565.0,0.01333417]
[1739381696417,0.51394565,97566.0,97565.0,0.01333417]
[1739381697086,0.53135049,97566.0,97565.0,0.01333417]
[1739381697519,0.53735049,97566.0,97565.0,0.01333417]
[1739381697961,0.53135049,97566.0,97565.0,0.01333417]
[1739381698296,0.54435049,97566.0,97565.0,0.01333417]
[1739381698489,0.64738858,97566.0,97565.0,0.01333417]
[1739381698695,0.62838858,97566.0,97565.0,0.01333417]
[1739381698851,0.54535049,97566.0,97565.0,0.01333417]
[1739381699050,0.55235049,97566.0,97565.0,0.01333417]
[1739381699608,0.30376,97554.0,97553.0,0.00022344]
[1739381699754,0.40626365,97554.0,97553.0,0.00022344]
[1739381700454,0.50839211,97554.0,97553.0,0.00022344]
[1739381700815,0.30376,97554.0,97553.0,0.00022344]
[1739381701359,0.31376,97554.0,97553.0,0.00022344]
[1739381701788,0.30876,97554.0,97553.0,0.00022344]
[1739381701964,0.31876,97554.0,97553.0,0.00022344]
[1739381702190,0.015,97554.0,97553.0,0.00022344]
[1739381702553,0.16876,97554.0,97553.0,0.00022344]
[1739381703163,0.16376,97554.0,97553.0,0.00022344]
[1739381703370,0.15876,97554.0,97553.0,0.00022344]
[1739381703606,0.16876,97554.0,97553.0,0.00022344]
[1739381704255,0.15876,97554.0,97553.0,0.00022344]
[1739381704453,0.16576,97554.0,97553.0,0.00013192]
[1739381704804,0.16076,97554.0,97553.0,0.00013192]
[1739381705002,0.15776,97554.0,97553.0,0.00013192]
[1739381705230,0.16376,97554.0,97553.0,0.00013192]
[1739381706040,0.15976,97554.0,97553.0,0.00013192]
[1739381706241,0.16376,97554.0,97553.0,0.00013192]
[1739381706418,0.15976,97554.0,97553.0,0.00013192]
[1739381707063,0.15376,97554.0,97553.0,0.00013192]
[1739381707281,0.15776,97554.0,97553.0,0.00013192]
[1739381707888,0.15576,97554.0,97553.0,0.00013192]
[1739381708231,0.001,97554.0,97553.0,0.00013192]
[1739381708444,0.002,97554.0,97553.0,0.00013192]
[1739381708676,0.001,97554.0,97553.0,0.00013192]
[1739381708985,0.15,97570.0,97556.0,0.153757]
[1739381709183,0.01169636,97565.0,97554.0,0.15376]
[1739381709336,0.00022428,97565.0,97554.0,0.15376]
[1739381709539,0.00022428,97565.0,97553.0,0.07683192]
[1739381709740,0.00022428,97565.0,97557.0,0.153755]
[1739381710678,0.00022428,97565.0,97562.0,0.153747]
[1739381710977,0.00022428,97565.0,97554.0,0.023]
[1739381711258,0.00022428,97565.0,97555.0,0.10250365]
[1739381711514,0.00522428,97565.0,97555.0,0.10250365]
[1739381711713,0.00322428,97565.0,97555.0,0.10250365]
[1739381711899,0.00522428,97565.0,97555.0,0.10250365]
[1739381712044,0.153745,97564.0,97555.0,0.10250365]
[1739381712247,0.00522428,97565.0,97555.0,0.10250365]
[1739381712476,0.00422428,97565.0,97555.0,0.10250365]
[1739381712998,0.00422428,97565.0,97564.0,0.153745]
[1739381713632,0.00622428,97565.0,97564.0,0.27924865]
[1739381714201,0.00022428,97565.0,97564.0,0.27924865]
[1739381714398,0.00222428,97565.0,97564.0,0.10250365]
[1739381714721,0.00422428,97565.0,97564.0,0.27924865]
[1739381714921,0.00022428,97565.0,97564.0,0.27924865]
[1739381715262,0.00222428,97565.0,97564.0,0.28424865]
[1739381715510,0.00122428,97565.0,97564.0,0.28224865]
[1739381715712,0.00122428,97565.0,97564.0,0.28424865]
[1739381715914,0.00222428,97565.0,97564.0,0.28424865]
[1739381717192,0.00122428,97565.0,97564.0,0.28124865]
[1739381717594,0.00222428,97565.0,97564.0,0.28224865]
[1739381718008,0.00222428,97565.0,97564.0,0.28424865]
[1739381718223,0.00222428,97565.0,97564.0,0.28224865]
[1739381718351,0.00322428,97565.0,97564.0,0.28424865]
[1739381718783,0.00122428,97565.0,97564.0,0.29986739]
[1739381719201,0.00222428,97565.0,97564.0,0.30086739]
[1739381719549,0.00222428,97565.0,97564.0,0.14712239]
[1739381719764,0.00222428,97565.0,97564.0,0.30086739]
[1739381720104,0.00222428,97565.0,97564.0,0.28224865]
[1739381720310,0.00022428,97565.0,97564.0,0.27924865]
[1739381720647,0.00322428,97565.0,97564.0,0.28424865]
[1739381720817,0.00222428,97565.0,97564.0,0.28224865]
[1739381721028,0.00022428,97565.0,97564.0,0.28124865]
[1739381721528,0.00222428,97565.0,97564.0,0.28224865]
[1739381721728,0.00322428,97565.0,97564.0,0.28424865]
[1739381721951,0.00122428,97565.0,97564.0,0.28124865]
[1739381722166,0.00322428,97565.0,97564.0,0.28424865]
[1739381723658,0.00322428,97565.0,97564.0,0.13050365]
[1739381724272,0.00322428,97565.0,97564.0,0.005]
[1739381724479,0.00122428,97565.0,97564.0,0.002]
[1739381724890,0.00322428,97565.0,97564.0,0.005]
[1739381725090,0.00222428,97565.0,97564.0,0.003]
[1739381725385,0.00022428,97565.0,97564.0,0.002]
[1739381725560,0.00122428,97565.0,97564.0,0.005]
[1739381725716,0.00222428,97565.0,97564.0,0.003]
[1739381726935,0.15496728,97565.0,97564.0,0.002]
[1739381727137,0.15696728,97565.0,97564.0,0.005]
[1739381727479,0.15596728,97565.0,97564.0,0.003]
[1739381727679,0.15696728,97565.0,97564.0,0.005]
[1739381728666,0.00322428,97565.0,97564.0,0.002]
[1739381728870,0.153745,97564.0,97554.0,0.205014]
[1739381729052,0.153745,97564.0,97555.0,0.10250365]
[1739381729569,0.153745,97564.0,97559.0,0.0001068]
[1739381729771,0.00022428,97565.0,97559.0,0.0001068]
[1739381730018,0.00022428,97565.0,97564.0,0.176745]
[1739381730299,0.00022428,97565.0,97564.0,0.36197345]
[1739381730527,0.00022428,97565.0,97564.0,0.50894865]
[1739381730916,0.00022428,97565.0,97564.0,0.35894865]
[1739381731152,0.00122428,97565.0,97564.0,0.14711843]
[1739381731661,0.00222428,97565.0,97564.0,0.14611843]
[1739381731860,0.00122428,97565.0,97564.0,0.14611843]
[1739381732034,0.00122428,97565.0,97564.0,0.14711843]
[1739381732175,0.00122428,97565.0,97564.0,0.02161478]
[1739381732387,0.00122428,97565.0,97564.0,0.01861478]
[1739381732592,0.00022428,97565.0,97561.0,0.01861478]
[1739381733426,0.15496928,97565.0,97564.0,0.002]
[1739381733907,0.15596928,97565.0,97564.0,0.015]
[1739381734108,0.15496928,97565.0,97564.0,0.013]
[1739381734575,0.00022428,97565.0,97559.0,0.0001068]
[1739381734776,0.00022428,97565.0,97561.0,0.002]
[1739381734973,0.153748,97562.0,97561.0,0.009]
[1739381735288,0.153748,97562.0,97561.0,0.007]
[1739381735517,0.153746,97563.0,97559.0,0.0001068]
[1739381735682,0.153746,97563.0,97559.0,0.0071068]
[1739381736040,0.153748,97562.0,97559.0,0.0071068]
[1739381736375,0.00122428,97565.0,97564.0,0.002]
[1739381736799,0.15496728,97565.0,97564.0,0.002]
[1739381737006,0.15396728,97565.0,97564.0,0.002]
[1739381737207,0.00022428,97565.0,97561.0,0.012]
[1739381737433,0.153748,97562.0,97561.0,0.012]
[1739381737651,0.153751,97560.0,97559.0,0.0001068]
[1739381737990,0.153751,97560.0,97559.0,0.0021068]
[1739381738197,0.153751,97560.0,97559.0,0.0001068]
[1739381738198,0.303751,97560.0,97559.0,0.0001068]
[1739381738322,0.40625465,97560.0,97559.0,0.0001068]
[1739381738519,0.41815658,97560.0,97559.0,0.0001068]
[1739381740187,0.42615658,97560.0,97559.0,0.0001068]
[1739381740606,0.50245658,97560.0,97559.0,0.0001068]
[1739381740861,0.49845658,97560.0,97559.0,0.0001068]
[1739381741063,0.50645658,97560.0,97559.0,0.0011068]
[1739381741386,0.50245658,97560.0,97559.0,0.0011068]
[1739381741588,0.51452995,97560.0,97559.0,0.0001068]
[1739381741827,0.52252995,97560.0,97559.0,0.0011068]
[1739381742033,0.32365293,97560.0,97559.0,0.0011068]
[1739381742496,0.17365293,97560.0,97559.0,0.0011068]
[1739381742696,0.012,97560.0,97559.0,0.0011068]
[1739381743188,0.008,97560.0,97559.0,0.0011068]
[1739381743408,0.011,97560.0,97559.0,0.28036345]
[1739381743560,0.00022428,97565.0,97559.0,0.12561045]
[1739381743757,0.00022428,97565.0,97560.0,0.10250365]
[1739381743971,0.00022428,97565.0,97562.0,0.204996]
[1739381744408,0.00022428,97565.0,97563.0,0.10250365]
[1739381744542,0.00022428,97565.0,97564.0,0.153745]
[1739381745272,0.00122428,97565.0,97564.0,0.153745]
[1739381745981,0.00122428,97565.0,97564.0,0.27924865]
[1739381746176,0.00122428,97565.0,97564.0,0.32614865]
[1739381746802,0.00022428,97565.0,97564.0,0.32714865]
[1739381746978,0.00022428,97565.0,97564.0,0.47614865]
[1739381747186,0.00122428,97565.0,97564.0,0.48914865]
[1739381747367,0.00122428,97565.0,97564.0,0.49014865]
[1739381747574,0.00022428,97565.0,97564.0,0.47614865]
[1739381747975,0.00122428,97565.0,97564.0,0.49114865]
[1739381749595,0.00222428,97565.0,97564.0,0.49214865]
[1739381753956,0.00222428,97565.0,97564.0,0.47714865]
[1739381754546,0.00122428,97565.0,97564.0,1.00864865]
[1739381754722,0.00222428,97565.0,97564.0,1.02364865]
[1739381754934,0.00222428,97565.0,97564.0,0.47714865]
[1739381755540,0.00122428,97565.0,97564.0,0.47614865]
[1739381755999,0.00222428,97565.0,97564.0,0.48314865]
[1739381756169,0.01218428,97565.0,97564.0,0.47614865]
[1739381756397,0.01118428,97565.0,97564.0,0.46114865]
[1739381756598,0.01218428,97565.0,97564.0,0.48314865]
[1739381756800,0.01018428,97565.0,97564.0,0.47614865]
[1739381757005,0.01018428,97565.0,97564.0,0.46814865]
[1739381757290,0.01018428,97565.0,97564.0,0.48314865]
[1739381757735,0.01018428,97565.0,97564.0,0.46814865]
[1739381758065,0.01018428,97565.0,97564.0,0.48314865]
[1739381759291,0.01018428,97565.0,97564.0,0.47614865]
[1739381759466,0.01018428,97565.0,97564.0,0.46114865]
[1739381759625,0.01118428,97565.0,97564.0,0.48314865]
[1739381759830,0.01018428,97565.0,97564.0,0.47614865]
[1739381760030,0.01018428,97565.0,97564.0,0.48314865]
[1739381760261,0.01118428,97565.0,97564.0,0.46814865]
[1739381760502,0.01118428,97565.0,97564.0,0.46114865]
[1739381760703,0.01118428,97565.0,97564.0,0.46814865]
[1739381760704,0.01218428,97565.0,97564.0,0.46814865]
[1739381761107,0.01018428,97565.0,97564.0,0.25624865]
[1739381761350,0.01018428,97565.0,97564.0,0.022]
[1739381761351,0.16492728,97565.0,97564.0,0.022]
[1739381761548,0.20191871,97565.0,97564.0,0.022]
[1739381761669,0.16492728,97565.0,97564.0,0.022]
[1739381762673,0.16392728,97565.0,97564.0,0.015]
[1739381762948,0.24182728,97565.0,97564.0,0.021]
[1739381763166,0.153749,97561.0,97560.0,0.0001066]
[1739381764395,0.08708428,97565.0,97564.0,0.336745]
[1739381764396,9e-08,97565.0,97564.0,0.336745]
[1739381764606,0.0002049,97607.0,97589.0,0.153705]
[1739381764743,0.08182511,97631.0,97605.0,0.17668]
[1739381764947,0.08182511,97631.0,97620.0,0.153657]
[1739381765215,0.00015636,97621.0,97620.0,0.153657]
[1739381765420,0.00015636,97621.0,97620.0,0.2571849]
[1739381765598,0.00015636,97621.0,97603.0,0.5465]
[1739381765812,0.00015636,97621.0,97604.0,0.10250365]
[1739381766141,0.00015636,97621.0,97606.0,0.204905]
[1739381766375,0.00015636,97621.0,97608.0,0.023]
[1739381766574,0.00015636,97621.0,97610.0,0.023]
[1739381766835,0.00015636,97621.0,97618.0,0.15366]
[1739381767243,0.00015636,97621.0,97614.0,0.023]
[1739381767376,0.00015636,97621.0,97616.0,0.176662]
[1739381767579,0.00015636,97621.0,97620.0,0.023]
[1739381767808,0.00015636,97621.0,97620.0,0.12652795]
[1739381767985,0.00015636,97621.0,97620.0,0.12550365]
[1739381769869,0.00015636,97621.0,97620.0,0.13150365]
[1739381770091,0.00115636,97621.0,97620.0,0.13150365]
[1739381770217,0.00115636,97621.0,97620.0,0.12550365]
[1739381770425,0.00215636,97621.0,97620.0,0.13352777]
[1739381770767,0.00215636,97621.0,97620.0,0.14750365]
[1739381771175,0.00215636,97621.0,97620.0,0.13250365]
[1739381771357,0.00215636,97621.0,97620.0,0.14750365]
[1739381771739,0.00215636,97621.0,97620.0,0.13250365]
[1739381772144,0.00015636,97621.0,97620.0,0.14050365]
[1739381772529,0.00115636,97621.0,97620.0,0.14750365]
[1739381772730,0.00115636,97621.0,97620.0,0.14050365]
[1739381773192,0.00215636,97621.0,97620.0,0.14750365]
[1739381773420,0.00015636,97621.0,97620.0,0.13694436]
[1739381773756,0.00115636,97621.0,97620.0,0.15894436]
[1739381774196,0.00115636,97621.0,97620.0,0.14394436]
[1739381774425,0.00115636,97621.0,97620.0,0.15894436]
[1739381774652,0.00115636,97621.0,97620.0,0.14750365]
[1739381774975,0.00115636,97621.0,97620.0,0.12450365]
[1739381775741,0.00115636,97621.0,97620.0,0.022]
[1739381775917,0.00015636,97621.0,97620.0,0.015]
[1739381776146,0.15381136,97621.0,97620.0,0.015]
[1739381776354,0.15481136,97621.0,97620.0,0.007]
[1739381776580,0.15481136,97621.0,97609.0,0.023]
[1739381776760,0.00115636,97621.0,97610.0,0.25617565]
[1739381776915,0.00215636,97621.0,97620.0,0.005]
[1739381777119,0.00015636,97621.0,97610.0,0.10250365]
[1739381777315,0.00015636,97621.0,97620.0,0.015]
[1739381777577,0.00015636,97621.0,97620.0,0.016]
[1739381777738,0.00015636,97621.0,97620.0,0.001]
[1739381778059,0.00015636,97621.0,97620.0,0.005]
[1739381779301,0.15381136,97621.0,97620.0,0.005]
[1739381779738,0.15381136,97621.0,97620.0,0.001]
[1739381780183,0.15381136,97621.0,97620.0,0.005]
[1739381780312,0.15381136,97621.0,97620.0,0.004]
[1739381780520,0.15381136,97621.0,97620.0,0.006]
[1739381781167,0.00015636,97621.0,97620.0,0.006]
[1739381782273,0.00015636,97621.0,97620.0,0.004]
[1739381782425,0.00015636,97621.0,97613.0,0.023]
[1739381782610,0.00015636,97621.0,97620.0,0.002]
[1739381782812,0.00015636,97621.0,97620.0,0.007]
[1739381783264,0.00015636,97621.0,97615.0,0.023]
[1739381783469,0.00015636,97621.0,97616.0,0.023]
[1739381783711,0.00015636,97621.0,97620.0,0.001]
[1739381783928,0.00015636,97621.0,97616.0,0.176663]
[1739381784251,0.00015636,97621.0,97620.0,0.011]
[1739381785370,0.00015636,97621.0,97620.0,0.29016065]
[1739381785571,0.00015636,97621.0,97620.0,0.28716065]
[1739381785703,0.00015636,97621.0,97620.0,0.27916065]
[1739381785905,0.15381136,97621.0,97620.0,0.002]
[1739381786106,0.20503136,97621.0,97616.0,0.005]
[1739381786518,0.00015636,97621.0,97608.0,0.023]
[1739381786734,0.00015636,97621.0,97608.0,0.10250365]
[1739381786917,0.00015636,97621.0,97590.0,0.08193171]
[1739381787271,0.01151445,97621.0,97601.0,0.204914]
[1739381787448,0.153676,97608.0,97602.0,0.25618665]
[1739381787654,0.153676,97608.0,97603.0,0.023]
[1739381787865,0.204878,97619.0,97603.0,0.12550365]
[1739381788189,0.153662,97617.0,97603.0,0.12550365]
[1739381788400,0.153662,97617.0,97590.0,0.08193171]
[1739381788401,0.00015636,97621.0,97605.0,0.023]
[1739381788571,0.00015636,97621.0,97619.0,0.023]
[1739381788919,0.00015636,97621.0,97618.0,0.176659]
[1739381789119,0.00015636,97621.0,97618.0,0.12550365]
[1739381789407,0.00015636,97621.0,97620.0,0.153657]
[1739381790722,0.00015636,97621.0,97620.0,0.157657]
[1739381790967,0.00015636,97621.0,97620.0,0.004]
[1739381790968,0.15381136,97621.0,97620.0,0.004]
[1739381791169,0.204894,97611.0,97597.0,0.204922]
[1739381791342,0.02266667,97612.0,97598.0,0.10250365]
[1739381791581,0.02266667,97612.0,97597.0,0.10250365]
[1739381791582,0.153691,97598.0,97597.0,0.10250365]
[1739381791781,0.153702,97591.0,97590.0,0.0001066]
[1739381791986,0.153702,97591.0,97590.0,0.10261025]
[1739381792406,0.153701,97592.0,97590.0,0.10261025]
[1739381792587,0.204923,97598.0,97591.0,0.12550365]
[1739381792813,0.153699,97593.0,97592.0,0.023]
[1739381793132,0.01134448,97602.0,97592.0,0.12550365]
[1739381793290,0.01134448,97602.0,97594.0,0.023]
[1739381793497,0.153692,97598.0,97596.0,0.023]
[1739381793686,0.153693,97597.0,97596.0,0.023]
[1739381795525,0.204921,97599.0,97596.0,0.023]
[1739381795719,0.153691,97599.0,97596.0,0.023]
[1739381795919,0.153693,97597.0,97596.0,0.023]
[1739381796180,0.153693,97597.0,97596.0,0.026]
[1739381796313,0.153693,97597.0,97596.0,0.023]
[1739381796739,0.153693,97597.0,97596.0,0.026]
[1739381797078,0.153693,97597.0,97596.0,0.023]
[1739381797278,0.153693,97597.0,97596.0,0.026]
[1739381798779,0.19648566,97597.0,97596.0,0.023]
[1739381798990,0.153693,97597.0,97596.0,0.023]
[1739381799228,0.153693,97597.0,97596.0,0.029]
[1739381799598,0.153693,97597.0,97596.0,0.025]
[1739381799773,0.153693,97597.0,97596.0,0.023]
[1739381800177,0.153693,97597.0,97596.0,0.025]
[1739381800390,0.21646274,97601.0,97596.0,0.028]
[1739381800922,0.21646274,97601.0,97596.0,0.025]
[1739381801098,0.153693,97597.0,97596.0,0.028]
[1739381801756,0.153693,97597.0,97596.0,0.026]
[1739381802250,0.57848652,97597.0,97596.0,0.003]
[1739381802377,0.303699,97593.0,97592.0,0.0001065]
[1739381802578,0.40620265,97593.0,97592.0,0.0001065]
[1739381802787,0.303699,97593.0,97592.0,0.0001065]
[1739381803181,0.153699,97593.0,97592.0,0.0001065]
[1739381803381,0.158699,97593.0,97592.0,0.0011065]
[1739381804065,0.153699,97593.0,97592.0,0.0001065]
[1739381804843,0.158699,97593.0,97592.0,0.0011065]
[1739381805044,0.162699,97593.0,97592.0,0.0011065]
[1739381805247,0.158699,97593.0,97592.0,0.0011065]
[1739381805495,0.161699,97593.0,97592.0,0.0011065]
[1739381806030,0.156699,97593.0,97592.0,0.0001065]
[1739381806388,0.161699,97593.0,97592.0,0.0001065]
[1739381806950,0.41420265,97593.0,97592.0,0.0001065]
[1739381807417,0.40920265,97593.0,97592.0,0.0001065]
[1739381807697,0.41420265,97593.0,97592.0,0.0001065]
[1739381808099,0.41120265,97593.0,97592.0,0.0001065]
[1739381808233,0.41420265,97593.0,97592.0,0.0001065]
[1739381808876,0.41720265,97593.0,97592.0,0.0001065]
[1739381809418,0.43809913,97593.0,97592.0,0.0001065]
[1739381809714,0.43309913,97593.0,97592.0,0.0001065]
[1739381810069,0.43809913,97593.0,97592.0,0.0001065]
[1739381811500,0.314699,97593.0,97592.0,0.0001065]
[1739381812311,0.164699,97593.0,97592.0,0.0001065]
[1739381813110,0.00022366,97599.0,97592.0,0.0001065]
[1739381813342,0.003,97593.0,97592.0,0.0001065]
[1739381813556,0.004,97593.0,97592.0,0.1768075]
[1739381813761,0.004,97593.0,97592.0,0.27931115]
[1739381813956,0.001,97593.0,97592.0,0.27931115]
[1739381814203,0.001,97593.0,97592.0,0.35431115]
[1739381814813,0.00022366,97599.0,97598.0,0.176691]
[1739381814961,0.00022366,97599.0,97598.0,0.27919465]
[1739381816067,0.00022366,97599.0,97598.0,0.28119465]
[1739381817026,0.00022366,97599.0,97598.0,0.28519465]
[1739381817711,0.00022366,97599.0,97598.0,0.28203465]
[1739381817943,0.00022366,97599.0,97598.0,0.82537465]
[1739381818595,0.00022366,97599.0,97598.0,0.97537465]
[1739381819022,0.00022366,97599.0,97598.0,0.97337465]
[1739381819224,0.00122366,97599.0,97598.0,1.05497465]
[1739381819432,0.00122366,97599.0,97598.0,0.50847465]
[1739381819750,0.00122366,97599.0,97598.0,1.09009656]
[1739381819955,0.00122366,97599.0,97598.0,1.10126381]
[1739381820107,0.00122366,97599.0,97598.0,1.09371072]
[1739381820307,0.00122366,97599.0,97598.0,1.12871072]
[1739381820713,0.00122366,97599.0,97598.0,1.11371072]
[1739381820915,0.00122366,97599.0,97598.0,1.10301873]
[1739381821144,0.00022366,97599.0,97598.0,0.36122957]
[1739381821349,0.00122366,97599.0,97598.0,0.28862957]
[1739381821500,0.00122366,97599.0,97598.0,0.28162957]
[1739381821859,0.00122366,97599.0,97598.0,0.03130801]
[1739381822072,0.00222366,97599.0,97598.0,0.03130801]
[1739381822228,0.00022366,97599.0,97598.0,0.00930801]
[1739381822429,0.153699,97593.0,97592.0,0.0001065]
[1739381822855,0.40620265,97593.0,97592.0,0.0001065]
[1739381824133,0.40820265,97593.0,97592.0,0.0001065]
[1739381824576,0.305699,97593.0,97592.0,0.0001065]
[1739381825404,0.303699,97593.0,97592.0,0.0001065]
[1739381825826,0.304699,97593.0,97592.0,0.0001065]
[1739381826231,0.303699,97593.0,97592.0,0.0001065]
[1739381826437,0.001,97593.0,97592.0,0.0001065]
[1739381826999,0.153698,97594.0,97592.0,0.0001065]
[1739381827255,0.001,97593.0,97592.0,0.0001065]
[1739381828434,0.153692,97598.0,97592.0,0.0001065]
[1739381828643,0.01177105,97599.0,97592.0,0.0001065]
[1739381828846,0.001,97593.0,97592.0,0.0001065]
[1739381829198,0.001,97593.0,97592.0,0.1538075]
[1739381829383,0.00022366,97599.0,97592.0,0.0011065]
[1739381829589,0.002,97598.0,97592.0,0.0011065]
[1739381829946,0.153699,97593.0,97592.0,0.0011065]
[1739381830378,0.153699,97593.0,97592.0,0.0051065]
[1739381830619,0.153699,97593.0,97592.0,0.0041065]
[1739381831634,0.153699,97593.0,97592.0,0.0011065]
[1739381831990,0.153699,97593.0,97592.0,0.0021065]
[1739381832416,0.153699,97593.0,97592.0,0.0001065]
[1739381832712,0.155699,97593.0,97592.0,0.0001065]
[1739381833318,0.1670999,97593.0,97592.0,0.0001065]
[1739381833677,0.1670999,97593.0,97592.0,0.0011065]
[1739381833877,0.1670999,97593.0,97592.0,0.0001065]
[1739381834100,0.3170999,97593.0,97592.0,0.0001065]
[1739381834335,0.3180999,97593.0,97592.0,0.0001065]
[1739381834521,0.41960355,97593.0,97592.0,0.0001065]
[1739381834721,0.42060355,97593.0,97592.0,0.0001065]
[1739381835124,0.41760355,97593.0,97592.0,0.0001065]
[1739381835490,0.42060355,97593.0,97592.0,0.0001065]
[1739381836030,0.49740355,97593.0,97592.0,0.0001065]
[1739381836255,0.49940355,97593.0,97592.0,0.0001065]
[1739381838091,0.3170999,97593.0,97592.0,0.0001065]
[1739381838297,0.3150999,97593.0,97592.0,0.0001065]
[1739381838538,0.3180999,97593.0,97592.0,0.0001065]
[1739381838864,0.3170999,97593.0,97592.0,0.0001065]
[1739381838993,0.3180999,97593.0,97592.0,0.0001065]
[1739381839192,0.3170999,97593.0,97592.0,0.0001065]
[1739381839686,0.41960355,97593.0,97592.0,0.0001065]
[1739381840056,0.3150999,97593.0,97592.0,0.0001065]
[1739381840262,0.41760355,97593.0,97592.0,0.0001065]
[1739381840666,0.3160999,97593.0,97592.0,0.0001065]
[1739381840843,0.3150999,97593.0,97592.0,0.0001065]
[1739381841285,0.3160999,97593.0,97592.0,0.0001065]
[1739381842011,0.3180999,97593.0,97592.0,0.0001065]
[1739381843779,0.3160999,97593.0,97592.0,0.0001065]
[1739381844187,0.3150999,97593.0,97592.0,0.0001065]
[1739381844609,0.3160999,97593.0,97592.0,0.0001065]
[1739381844810,0.3150999,97593.0,97592.0,0.0001065]
[1739381845256,0.3180999,97593.0,97592.0,0.0001065]
[1739381845577,0.3160999,97593.0,97592.0,0.0001065]
[1739381845910,0.3180999,97593.0,97592.0,0.0001065]
[1739381846364,0.3160999,97593.0,97592.0,0.0001065]
[1739381846736,0.3170999,97593.0,97592.0,0.0001065]
[1739381847360,0.3160999,97593.0,97592.0,0.0001065]
[1739381848144,0.3150999,97593.0,97592.0,0.0001065]
[1739381848343,0.41860355,97593.0,97592.0,0.0001065]
[1739381848804,0.10350365,97593.0,97592.0,0.0001065]
[1739381849008,0.25620265,97593.0,97592.0,0.0001065]
[1739381849151,0.25720265,97593.0,97592.0,0.0001065]
[1739381849553,0.25620265,97593.0,97592.0,0.0001065]
[1739381849774,0.26706554,97593.0,97592.0,0.0001065]
[1739381849972,0.16656189,97593.0,97592.0,0.0001065]
[1739381851188,0.16756189,97593.0,97592.0,0.0001065]
[1739381852799,0.16556189,97593.0,97592.0,0.0001065]
[1739381853001,0.16456189,97593.0,97592.0,0.0001065]
[1739381853214,0.16556189,97593.0,97592.0,0.0001065]
[1739381854718,0.16656189,97593.0,97592.0,0.0001065]
[1739381855041,0.16556189,97593.0,97592.0,0.0001065]
[1739381855161,0.16456189,97593.0,97592.0,0.0001065]
[1739381855361,0.153694,97596.0,97592.0,0.0001065]
[1739381855563,0.154699,97593.0,97592.0,0.0001065]
[1739381856264,0.153699,97593.0,97592.0,0.0001065]
[1739381856896,0.25620265,97593.0,97592.0,0.0001065]
[1739381857107,0.48530265,97593.0,97592.0,0.0001065]
[1739381857239,0.48552631,97593.0,97592.0,0.0001065]